fUSD/lending_fUSD_20241215
["ID","MTS","AMOUNT","RATE_DAILY","PERIOD"]
[345406631,1734249033145,-1000.0,0.00012616,2]
[345406632,1734249033155,-1300.0,0.000127,4]
[345406633,1734249033165,-10002.7034,0.000128,2]
[345406634,1734249033174,-181.75067757,0.000128,2]
[345406635,1734249033183,-1700.0,0.000128,4]
[345406636,1734249033193,-363.07828415,0.00012806,2]
[345406637,1734249033202,-150.0,0.00012813,2]
[345406638,1734249033212,-363.07828415,0.00012894,2]
[345406639,1734249033221,-1001.93534769,0.00012899,2]
[345406640,1734249033230,-500.0,0.00012899,2]
[345406641,1734249033240,-300.62860723,0.00012899,2]
[345406642,1734249033249,-7500.0,0.00012899,2]
[345406643,1734249033258,-254653.27448,0.000129,2]
[345406644,1734249033268,-2200.0,0.000129,4]
[345406645,1734249033277,-1015.36,0.00012906,2]
[345406646,1734249033287,-185.0,0.00012909,2]
[345406647,1734249033296,-506.68013755,0.0001292,2]
[345406648,1734249033305,-275.07914976,0.00012947,2]
[345406649,1734249033315,-6915.19744552,0.00012947,2]
[345406650,1734249033324,-865.45550253,0.00012947,2]
[345406651,1734249033333,-363.07828415,0.00012982,2]
[345406652,1734249033343,-994.15,0.00012982,2]
[345406653,1734249033352,-182.67187684,0.00012999,2]
[345406654,1734249033362,-7500.0,0.00012999,2]
[345406655,1734249033373,-450.0,0.00013,2]
[345406656,1734249033383,-13319.02554238,0.00013,2]
[345406657,1734249033392,-119919.0,0.00013,2]
[345406658,1734249033402,-161890.0,0.00013,2]
[345406659,1734249033411,-43280.14014904,0.00013,2]
[345406660,1734249033448,-450.1191911,0.00013,2]
[345406661,1734249033460,-976.55251709,0.00013,2]
[345406662,1734249033478,-22044.96526658,0.00013,2]
[345406663,1734249033496,-2704.11626638,0.00013,2]
[345406664,1734249033508,-1039.7999999,0.00013,2]
[345406665,1734249033519,-566.89501676,0.00013,2]
[345406666,1734249033531,-3358.8,0.00013,2]
[345406667,1734249033543,-1059.9999925,0.00013,2]
[345406668,1734249033554,-1125.65000025,0.00013,2]
[345406670,1734249036364,-200.0,0.0001258,2]
[345406672,1734249036379,-4856.73125521,0.00013,2]
[345406843,1734249038233,-692.208,0.00013,2]
[345406844,1734249038381,-289.4002629,0.00013,2]
[345406845,1734249038392,-1069.84869,0.00013,2]
[345406846,1734249038405,-1692.60078042,0.00013,2]
[345406847,1734249038425,-4156.4574185,0.00013,2]
[345406856,1734249039192,-462.16897892,0.00013,2]
[345406857,1734249039204,-15046.37513119,0.00013,2]
[345406858,1734249039216,-4481.8012473,0.00013,2]
[345406859,1734249039226,-4820.999993,0.00013,2]
[345406860,1734249039321,-88913.76199816,0.00013,2]
[345406861,1734249039331,-8246.7,0.00013,2]
[345406864,1734249040272,-214612.08621006,0.00013,2]
[345406865,1734249040282,-7584.0,0.00013014,2]
[345406866,1734249040292,-150.121516,0.0001304,2]
[345406867,1734249040301,-150.121516,0.00013041,3]
[345406868,1734249040310,-150.121516,0.00013041,2]
[345406869,1734249040320,-150.121516,0.00013042,2]
[345406870,1734249040330,-150.121516,0.00013042,3]
[345406871,1734249040339,-150.121516,0.00013043,2]
[345406872,1734249040349,-150.121516,0.00013044,3]
[345406873,1734249040359,-150.121516,0.00013044,2]
[345406874,1734249040369,-150.121516,0.00013045,2]
[345406875,1734249040380,-150.121516,0.00013045,3]
[345406876,1734249040390,-7500.0,0.00013045,2]
[345406877,1734249040399,-500.0,0.00013046,2]
[345406878,1734249040409,-7500.0,0.00013046,2]
[345406879,1734249040419,-3981669.38583333,0.00013047,2]
[345406880,1734249040428,-3000.0,0.00013047,2]
[345406881,1734249040438,-987.87,0.00013047,2]
[345406882,1734249040447,-1016.22,0.00013048,2]
[345406883,1734249040456,-363.07828415,0.0001307,2]
[345406884,1734249040465,-500.0,0.00013073,2]
[345406885,1734249040475,-355.0058332,0.00013073,2]
[345406886,1734249040484,-500.0,0.00013073,2]
[345406887,1734249040494,-246.69784394,0.00013073,2]
[345406888,1734249040503,-499.87925761,0.00013073,2]
[345406889,1734249040513,-500.0,0.00013073,2]
[345406890,1734249040522,-500.0,0.00013073,2]
[345406891,1734249040532,-992.89,0.0001311,2]
[345406892,1734249040541,-363.07828415,0.00013158,2]
[345406893,1734249040550,-166.5,0.00013166,2]
[345406894,1734249040570,-364.52,0.00013178,2]
[345406895,1734249040579,-500.0,0.00013183,2]
[345406896,1734249040589,-181.75067756,0.00013199,2]
[345406897,1734249040598,-989.15,0.0001322,2]
[345406898,1734249040608,-363.07828415,0.00013246,2]
[345406899,1734249040617,-30000.0,0.00013283,2]
[345406900,1734249040628,-365.288,0.000133,2]
[345406901,1734249040637,-500.0,0.0001332,2]
[345406902,1734249040647,-363.07828415,0.00013334,2]
[345406903,1734249040656,-363.07828415,0.00013422,2]
[345406904,1734249040665,-500.0,0.00013457,2]
[345406905,1734249040675,-363.07828415,0.0001351,2]
[345406906,1734249040684,-852.0,0.00013548,2]
[345406907,1734249040693,-153.0,0.0001359,2]
[345406908,1734249040703,-153.0,0.0001359,2]
[345406909,1734249040712,-153.0,0.0001359,2]
[345406910,1734249040722,-153.0,0.0001359,2]
[345406911,1734249040731,-153.0,0.0001359,2]
[345406912,1734249040741,-153.0,0.0001359,2]
[345406913,1734249040751,-515.09445793,0.00013594,2]
[345406914,1734249040760,-181.75067756,0.00013598,2]
[345406915,1734249040770,-363.07828415,0.00013598,2]
[345406916,1734249040779,-502.54781468,0.00013621,2]
[345406917,1734249040788,-1000.0,0.00013621,2]
[345406918,1734249040798,-1544.79,0.00013621,2]
[345406919,1734249040808,-500.0,0.00013698,2]
[345406920,1734249040818,-248.05741825,0.00013698,2]
[345406921,1734249040828,-500.0,0.00013698,2]
[345406922,1734249040837,-516.81603925,0.00013698,2]
[345406923,1734249040847,-500.0,0.00013698,2]
[345406924,1734249040857,-500.0,0.00013698,2]
[345406925,1734249040867,-500.0,0.00013698,2]
[345406926,1734249040877,-500.0,0.00013698,2]
[345406927,1734249040886,-316.85522293,0.00013698,2]
[345406928,1734249040898,-500.0,0.00013698,2]
[345406929,1734249040907,-500.0,0.00013698,2]
[345406930,1734249040917,-313.70597813,0.00013698,2]
[345406931,1734249040926,-500.0,0.00013698,2]
[345406932,1734249040936,-500.0,0.00013698,2]
[345406933,1734249040945,-500.0,0.00013698,2]
[345406934,1734249040955,-518.2654058,0.00013698,2]
[345406935,1734249040964,-500.0,0.00013698,2]
[345406936,1734249040973,-500.0,0.00013698,2]
[345406937,1734249040983,-500.0,0.00013698,2]
[345406938,1734249040992,-500.0,0.00013698,2]
[345406939,1734249041002,-500.0,0.00013698,2]
[345406940,1734249041011,-500.0,0.00013698,2]
[345406941,1734249041020,-500.0,0.00013698,2]
[345406942,1734249041030,-501.33001894,0.00013698,2]
[345406943,1734249041039,-559.83273209,0.00013698,2]
[345406944,1734249041048,-500.0,0.00013698,2]
[345406945,1734249041057,-542.49106169,0.00013698,2]
[345406946,1734249041066,-500.0,0.00013698,2]
[345406947,1734249041075,-500.0,0.00013698,2]
[345406948,1734249041085,-294.89027928,0.00013698,2]
[345406949,1734249041094,-500.0,0.00013698,2]
[345406950,1734249041104,-500.0,0.00013698,2]
[345406951,1734249041113,-500.0,0.00013698,2]
[345406952,1734249041122,-500.0,0.00013698,2]
[345406953,1734249041133,-389.76565276,0.00013698,2]
[345406954,1734249041142,-500.0,0.00013698,2]
[345406955,1734249041151,-582.560133,0.00013698,2]
[345406956,1734249041161,-500.0,0.00013698,2]
[345406957,1734249041170,-500.0,0.00013698,2]
[345406958,1734249041179,-500.0,0.00013698,2]
[345406959,1734249041188,-500.0,0.00013698,2]
[345406960,1734249041199,-500.0,0.00013698,2]
[345406961,1734249041208,-500.0,0.00013698,2]
[345406962,1734249041218,-500.0,0.00013698,2]
[345406963,1734249041227,-501.98536775,0.00013698,2]
[345406964,1734249041236,-500.0,0.00013698,2]
[345406965,1734249041246,-500.0,0.00013698,2]
[345406966,1734249041255,-500.0,0.00013698,2]
[345406967,1734249041264,-500.0,0.00013698,2]
[345406968,1734249041274,-253.69255578,0.00013698,2]
[345406969,1734249041283,-500.0,0.00013698,2]
[345406970,1734249041292,-500.0,0.00013698,2]
[345406971,1734249041301,-500.0,0.00013698,2]
[345406972,1734249041311,-500.0,0.00013698,2]
[345406973,1734249041320,-500.0,0.00013698,2]
[345406974,1734249041329,-500.0,0.00013698,2]
[345406975,1734249041338,-500.0,0.00013698,2]
[345406976,1734249041347,-501.35078286,0.00013698,2]
[345406977,1734249041356,-500.0,0.00013698,2]
[345406978,1734249041366,-500.0,0.00013698,2]
[345406979,1734249041375,-500.0,0.00013698,2]
[345406980,1734249041385,-500.0,0.00013698,2]
[345406981,1734249041394,-500.0,0.00013698,2]
[345406982,1734249041404,-500.0,0.00013698,2]
[345406983,1734249041414,-500.0,0.00013698,2]
[345406984,1734249041423,-500.0,0.00013698,2]
[345406985,1734249041434,-500.0,0.00013698,2]
[345406986,1734249041625,-500.0,0.00013698,2]
[345406987,1734249041636,-500.0,0.00013698,2]
[345406988,1734249041645,-500.0,0.00013698,2]
[345406989,1734249041654,-500.0,0.00013698,2]
[345406990,1734249041663,-500.0,0.00013698,2]
[345406991,1734249041672,-500.0,0.00013698,2]
[345406992,1734249041681,-500.0,0.00013698,2]
[345406993,1734249041690,-500.0,0.00013698,2]
[345406994,1734249041699,-500.0,0.00013698,2]
[345406995,1734249041708,-500.0,0.00013698,2]
[345406996,1734249041717,-500.0,0.00013698,2]
[345406997,1734249041726,-500.0,0.00013698,2]
[345406998,1734249041735,-500.0,0.00013698,2]
[345406999,1734249041744,-500.0,0.00013698,2]
[345407000,1734249041753,-500.0,0.00013698,2]
[345407001,1734249041762,-472.66361823,0.00013698,2]
[345407002,1734249041771,-500.0,0.00013698,2]
[345407003,1734249041780,-500.0,0.00013698,2]
[345407004,1734249041790,-500.0,0.00013698,2]
[345407005,1734249041799,-448.66499837,0.00013698,2]
[345407006,1734249041808,-500.0,0.00013698,2]
[345407007,1734249041816,-500.0,0.00013698,2]
[345407008,1734249041826,-501.34446198,0.00013698,2]
[345407009,1734249041834,-500.0,0.00013698,2]
[345407010,1734249041844,-500.0,0.00013698,2]
[345407011,1734249041853,-501.98465362,0.00013698,2]
[345407012,1734249041862,-500.0,0.00013698,2]
[345407013,1734249041872,-500.0,0.00013698,2]
[345407014,1734249041882,-501.279055,0.00013698,2]
[345407015,1734249041891,-500.0,0.00013698,2]
[345407016,1734249041904,-500.0,0.00013698,2]
[345407017,1734249041913,-501.05754569,0.00013698,2]
[345407018,1734249041922,-500.0,0.00013698,2]
[345407019,1734249041931,-500.0,0.00013698,2]
[345407020,1734249041941,-500.0,0.00013698,2]
[345407021,1734249041950,-500.0,0.00013698,2]
[345407022,1734249041959,-500.0,0.00013698,2]
[345407023,1734249041968,-500.0,0.00013698,2]
[345407024,1734249041977,-500.0,0.00013698,2]
[345407025,1734249041987,-500.0,0.00013698,2]
[345407026,1734249041996,-501.81979498,0.00013698,2]
[345407027,1734249042006,-500.0,0.00013698,2]
[345407028,1734249042015,-500.0,0.00013698,2]
[345407029,1734249042024,-502.2611332,0.00013698,2]
[345407030,1734249042032,-500.0,0.00013698,2]
[345407031,1734249042042,-500.0,0.00013698,2]
[345407032,1734249042051,-500.80751957,0.00013698,2]
[345407033,1734249042060,-500.0,0.00013698,2]
[345407034,1734249042070,-500.0,0.00013698,2]
[345407035,1734249042079,-503.40123728,0.00013698,2]
[345407036,1734249042088,-500.0,0.00013698,2]
[345407037,1734249042097,-500.0,0.00013698,2]
[345407038,1734249042106,-501.75847418,0.00013698,2]
[345407039,1734249042114,-500.0,0.00013698,2]
[345407040,1734249042123,-500.0,0.00013698,2]
[345407041,1734249042134,-501.21999787,0.00013698,2]
[345407042,1734249042143,-500.0,0.00013698,2]
[345407043,1734249042152,-500.0,0.00013698,2]
[345407044,1734249042161,-501.507999,0.00013698,2]
[345407045,1734249042170,-516.25892268,0.00013698,2]
[345407046,1734249042179,-500.0,0.00013698,2]
[345407047,1734249042188,-502.23296797,0.00013698,2]
[345407048,1734249042198,-211.79573567,0.00013698,2]
[345407049,1734249042207,-500.0,0.00013698,2]
[345407050,1734249042215,-500.0,0.00013698,2]
[345407051,1734249042225,-504.01767841,0.00013698,2]
[345407052,1734249042234,-500.0,0.00013698,2]
[345407053,1734249042243,-500.0,0.00013698,2]
[345407054,1734249042252,-500.0,0.00013698,2]
[345407055,1734249042261,-501.47421765,0.00013698,2]
[345407056,1734249042271,-500.0,0.00013698,2]
[345407057,1734249042280,-500.0,0.00013698,2]
[345407058,1734249042290,-500.0,0.00013698,2]
[345407059,1734249042299,-500.99582231,0.00013698,2]
[345407060,1734249042308,-500.0,0.00013698,2]
[345407061,1734249042317,-477.26540635,0.00013698,2]
[345407062,1734249042327,-500.0,0.00013698,2]
[345407063,1734249042336,-500.0,0.00013698,2]
[345407064,1734249042345,-505.05914017,0.00013698,2]
[345407065,1734249042355,-156.602172,0.00013698,2]
[345407066,1734249042364,-156.602172,0.00013698,2]
[345407067,1734249042373,-500.0,0.00013698,2]
[345407068,1734249042383,-156.602172,0.00013698,2]
[345407069,1734249042392,-242.01452629,0.00013698,2]
[345407070,1734249042401,-500.0,0.00013698,2]
[345407071,1734249042410,-504.33681148,0.00013698,2]
[345407072,1734249042419,-500.0,0.00013698,2]
[345407073,1734249042430,-500.0,0.00013698,2]
[345407074,1734249042439,-500.0,0.00013698,2]
[345407075,1734249042449,-482.82499875,0.00013698,2]
[345407076,1734249042458,-500.0,0.00013698,2]
[345407077,1734249042467,-500.0,0.00013698,2]
[345407078,1734249042477,-500.0,0.00013698,2]
[345407079,1734249042486,-500.0,0.00013698,2]
[345407080,1734249042495,-500.0,0.00013698,2]
[345407081,1734249042504,-500.0,0.00013698,2]
[345407082,1734249042513,-541.2052892,0.00013698,2]
[345407083,1734249042523,-500.0,0.00013698,2]
[345407084,1734249042532,-500.0,0.00013698,2]
[345407085,1734249042542,-500.0,0.00013698,2]
[345407086,1734249042552,-500.0,0.00013698,2]
[345407087,1734249042562,-632.93787203,0.00013698,2]
[345407088,1734249042571,-500.0,0.00013698,2]
[345407089,1734249042580,-503.22576723,0.00013698,2]
[345407090,1734249042590,-500.0,0.00013698,2]
[345407091,1734249042599,-500.0,0.00013698,2]
[345407092,1734249042608,-500.0,0.00013698,2]
[345407093,1734249042618,-502.02964329,0.00013698,2]
[345407094,1734249042627,-500.0,0.00013698,2]
[345407095,1734249042641,-500.0,0.00013698,2]
[345407096,1734249042650,-500.0,0.00013698,2]
[345407097,1734249042659,-500.0,0.00013698,2]
[345407098,1734249042669,-500.0,0.00013698,2]
[345407099,1734249042678,-500.0,0.00013698,2]
[345407100,1734249042688,-500.0,0.00013698,2]
[345407101,1734249042698,-502.29456753,0.00013698,2]
[345407102,1734249042707,-346.47979609,0.00013698,2]
[345407103,1734249042717,-500.0,0.00013698,2]
[345407104,1734249042726,-500.0,0.00013698,2]
[345407105,1734249042736,-504.74090124,0.00013698,2]
[345407106,1734249042745,-500.0,0.00013698,2]
[345407107,1734249042755,-500.0,0.00013698,2]
[345407108,1734249042766,-368.06746773,0.00013698,2]
[345407109,1734249042775,-500.0,0.00013698,2]
[345407110,1734249042786,-500.0,0.00013698,2]
[345407111,1734249042795,-155.68624068,0.00013698,2]
[345407112,1734249042805,-500.0,0.00013698,2]
[345407113,1734249042815,-446.42921415,0.00013698,2]
[345407114,1734249042824,-500.0,0.00013698,2]
[345407115,1734249042833,-500.0,0.00013698,2]
[345407116,1734249042843,-500.0,0.00013698,2]
[345407117,1734249042853,-501.66240641,0.00013698,2]
[345407118,1734249042862,-500.0,0.00013698,2]
[345407119,1734249042871,-500.0,0.00013698,2]
[345407120,1734249042887,-525.35389315,0.00013698,2]
[345407121,1734249042897,-500.0,0.00013698,2]
[345407122,1734249042907,-494.17477935,0.00013698,2]
[345407123,1734249042916,-500.0,0.00013698,2]
[345407124,1734249042925,-522.52866718,0.00013698,2]
[345407125,1734249042935,-500.0,0.00013698,2]
[345407126,1734249042944,-500.0,0.00013698,2]
[345407127,1734249042954,-500.0,0.00013698,2]
[345407128,1734249042963,-501.78822128,0.00013698,2]
[345407129,1734249042973,-500.0,0.00013698,2]
[345407130,1734249042982,-500.0,0.00013698,2]
[345407131,1734249042992,-500.0,0.00013698,2]
[345407133,1734249043001,-501.07206846,0.00013698,2]
[345407134,1734249043010,-500.0,0.00013698,2]
[345407135,1734249043020,-501.23969542,0.00013698,2]
[345407136,1734249043029,-542.02022457,0.00013698,2]
[345407138,1734249043038,-500.0,0.00013698,2]
[345407139,1734249043047,-567.63033433,0.00013698,2]
[345407140,1734249043057,-500.0,0.00013698,2]
[345407141,1734249043066,-500.0,0.00013698,2]
[345407142,1734249043075,-500.0,0.00013698,2]
[345407143,1734249043085,-501.49841725,0.00013698,2]
[345407144,1734249043094,-500.0,0.00013698,2]
[345407145,1734249043104,-619.00134028,0.00013698,2]
[345407146,1734249043114,-503.79828622,0.00013698,2]
[345407147,1734249043123,-637.97554869,0.00013698,2]
[345407148,1734249043137,-500.0,0.00013698,2]
[345407149,1734249043147,-500.0,0.00013698,2]
[345407150,1734249043156,-185.45138187,0.00013698,2]
[345407151,1734249043165,-500.0,0.00013698,2]
[345407152,1734249043174,-500.0,0.00013698,2]
[345407153,1734249043183,-500.0,0.00013698,2]
[345407154,1734249043193,-501.1053376,0.00013698,2]
[345407155,1734249043202,-500.0,0.00013698,2]
[345407156,1734249043211,-500.0,0.00013698,2]
[345407157,1734249043221,-271.63620331,0.00013698,2]
[345407158,1734249043231,-500.0,0.00013698,2]
[345407159,1734249043239,-500.0,0.00013698,2]
[345407160,1734249043248,-500.0,0.00013698,2]
[345407161,1734249043257,-501.8415902,0.00013698,2]
[345407162,1734249043267,-500.0,0.00013698,2]
[345407163,1734249043276,-500.0,0.00013698,2]
[345407164,1734249043285,-500.0,0.00013698,2]
[345407165,1734249043294,-601.33424263,0.00013698,2]
[345407166,1734249043303,-208.73815394,0.00013698,2]
[345407167,1734249043313,-500.0,0.00013698,2]
[345407168,1734249043323,-500.0,0.00013698,2]
[345407169,1734249043332,-500.0,0.00013698,2]
[345407170,1734249043341,-500.0,0.00013698,2]
[345407171,1734249043350,-500.0,0.00013698,2]
[345407172,1734249043361,-500.0,0.00013698,2]
[345407173,1734249043370,-500.0,0.00013698,2]
[345407174,1734249043382,-500.0,0.00013698,2]
[345407175,1734249043392,-500.0,0.00013698,2]
[345407176,1734249043402,-500.0,0.00013698,2]
[345407177,1734249043412,-610.78605061,0.00013698,2]
[345407178,1734249043421,-500.0,0.00013698,2]
[345407179,1734249043430,-639.72358716,0.00013698,2]
[345407180,1734249043439,-500.0,0.00013698,2]
[345407181,1734249043448,-500.0,0.00013698,2]
[345407182,1734249043458,-500.0,0.00013698,2]
[345407183,1734249043467,-502.0187348,0.00013698,2]
[345407184,1734249043476,-500.0,0.00013698,2]
[345407185,1734249043486,-500.0,0.00013698,2]
[345407186,1734249043494,-500.0,0.00013698,2]
[345407187,1734249043504,-338.75594579,0.00013698,2]
[345407188,1734249043514,-500.0,0.00013698,2]
[345407189,1734249043523,-500.0,0.00013698,2]
[345407190,1734249043533,-500.0,0.00013698,2]
[345407191,1734249043543,-500.76876354,0.00013698,2]
[345407192,1734249043552,-267.4124726,0.00013698,2]
[345407193,1734249043562,-500.0,0.00013698,2]
[345407194,1734249043572,-500.0,0.00013698,2]
[345407195,1734249043581,-500.0,0.00013698,2]
[345407196,1734249043591,-500.84497629,0.00013698,2]
[345407197,1734249043601,-500.0,0.00013698,2]
[345407198,1734249043610,-500.0,0.00013698,2]
[345407199,1734249043619,-423.28760925,0.00013698,2]
[345407200,1734249043631,-500.0,0.00013698,2]
[345407201,1734249043640,-500.0,0.00013698,2]
[345407202,1734249043649,-500.0,0.00013698,2]
[345407203,1734249043659,-501.31020247,0.00013698,2]
[345407204,1734249043668,-500.0,0.00013698,2]
[345407205,1734249043678,-500.0,0.00013698,2]
[345407206,1734249043688,-500.0,0.00013698,2]
[345407207,1734249043697,-501.1043831,0.00013698,2]
[345407208,1734249043707,-500.0,0.00013698,2]
[345407209,1734249043717,-581.07518276,0.00013698,2]
[345407210,1734249043727,-500.0,0.00013698,2]
[345407211,1734249043737,-500.0,0.00013698,2]
[345407212,1734249043747,-258.6502476,0.00013698,2]
[345407213,1734249043756,-500.0,0.00013698,2]
[345407215,1734249043900,-500.0,0.00013698,2]
[345407216,1734249043910,-500.0,0.00013698,2]
[345407217,1734249043920,-501.36674529,0.00013698,2]
[345407218,1734249043929,-500.0,0.00013698,2]
[345407219,1734249043939,-500.0,0.00013698,2]
[345407220,1734249043948,-500.0,0.00013698,2]
[345407221,1734249043959,-501.3756651,0.00013698,2]
[345407222,1734249043968,-500.0,0.00013698,2]
[345407223,1734249043978,-500.0,0.00013698,2]
[345407224,1734249043987,-500.0,0.00013698,2]
[345407225,1734249043997,-501.10841857,0.00013698,2]
[345407226,1734249044007,-501.35258262,0.00013698,2]
[345407227,1734249044016,-500.0,0.00013698,2]
[345407228,1734249044026,-500.0,0.00013698,2]
[345407229,1734249044035,-500.0,0.00013698,2]
[345407230,1734249044044,-547.14501259,0.00013698,2]
[345407231,1734249044054,-500.0,0.00013698,2]
[345407232,1734249044063,-500.0,0.00013698,2]
[345407233,1734249044073,-500.0,0.00013698,2]
[345407234,1734249044082,-500.0,0.00013698,2]
[345407235,1734249044092,-500.0,0.00013698,2]
[345407236,1734249044102,-500.0,0.00013698,2]
[345407237,1734249044111,-500.0,0.00013698,2]
[345407238,1734249044121,-500.0,0.00013698,2]
[345407239,1734249044131,-500.0,0.00013698,2]
[345407240,1734249044140,-500.0,0.00013698,2]
[345407241,1734249044150,-500.0,0.00013698,2]
[345407242,1734249044159,-500.0,0.00013698,2]
[345407243,1734249044169,-502.53106584,0.00013698,2]
[345407244,1734249044178,-500.0,0.00013698,2]
[345407245,1734249044187,-500.0,0.00013698,2]
[345407246,1734249044196,-500.0,0.00013698,2]
[345407247,1734249044206,-501.64928112,0.00013698,2]
[345407248,1734249044215,-500.0,0.00013698,2]
[345407249,1734249044225,-500.0,0.00013698,2]
[345407250,1734249044235,-500.0,0.00013698,2]
[345407251,1734249044244,-412.98811063,0.00013698,2]
[345407252,1734249044254,-500.0,0.00013698,2]
[345407253,1734249044263,-503.12733234,0.00013698,2]
[345407254,1734249044273,-500.37728645,0.00013698,2]
[345407255,1734249044283,-500.0,0.00013698,2]
[345407256,1734249044292,-500.0,0.00013698,2]
[345407257,1734249044302,-174.77591904,0.00013698,2]
[345407258,1734249044311,-501.2317863,0.00013698,2]
[345407259,1734249044320,-500.0,0.00013698,2]
[345407260,1734249044330,-500.0,0.00013698,2]
[345407261,1734249044339,-500.0,0.00013698,2]
[345407262,1734249044348,-500.0,0.00013698,2]
[345407263,1734249044358,-500.0,0.00013698,2]
[345407264,1734249044368,-500.0,0.00013698,2]
[345407265,1734249044377,-500.0,0.00013698,2]
[345407266,1734249044388,-500.0,0.00013698,2]
[345407267,1734249044397,-500.0,0.00013698,2]
[345407268,1734249044408,-500.0,0.00013698,2]
[345407269,1734249044418,-500.0,0.00013698,2]
[345407270,1734249044428,-500.0,0.00013698,2]
[345407271,1734249044438,-500.0,0.00013698,2]
[345407272,1734249044448,-500.0,0.00013698,2]
[345407273,1734249044458,-500.0,0.00013698,2]
[345407274,1734249044467,-500.0,0.00013698,2]
[345407275,1734249044476,-500.0,0.00013698,2]
[345407276,1734249044486,-161.4,0.00013698,2]
[345407277,1734249044495,-500.0,0.00013698,2]
[345407278,1734249044505,-500.0,0.00013698,2]
[345407279,1734249044514,-500.0,0.00013698,2]
[345407280,1734249044523,-500.0,0.00013698,2]
[345407281,1734249044531,-501.80231243,0.00013698,2]
[345407282,1734249044540,-500.0,0.00013698,2]
[345407283,1734249044550,-527.71242517,0.00013698,2]
[345407284,1734249044560,-500.0,0.00013698,2]
[345407285,1734249044569,-500.0,0.00013698,2]
[345407286,1734249044579,-500.0,0.00013698,2]
[345407287,1734249044588,-500.0,0.00013698,2]
[345407288,1734249044598,-500.0,0.00013698,2]
[345407289,1734249044607,-500.0,0.00013698,2]
[345407290,1734249044617,-500.0,0.00013698,2]
[345407291,1734249044627,-500.0,0.00013698,2]
[345407292,1734249044639,-500.0,0.00013698,2]
[345407293,1734249044648,-500.0,0.00013698,2]
[345407294,1734249044658,-500.0,0.00013698,2]
[345407295,1734249044668,-500.0,0.00013698,2]
[345407296,1734249044677,-501.92293948,0.00013698,2]
[345407297,1734249044687,-500.0,0.00013698,2]
[345407298,1734249044697,-500.0,0.00013698,2]
[345407299,1734249044706,-500.0,0.00013698,2]
[345407300,1734249044716,-506.7327713,0.00013698,2]
[345407301,1734249044725,-500.0,0.00013698,2]
[345407302,1734249044735,-500.0,0.00013698,2]
[345407303,1734249044745,-500.0,0.00013698,2]
[345407304,1734249044754,-404.12456442,0.00013698,2]
[345407305,1734249044764,-500.0,0.00013698,2]
[345407306,1734249044774,-500.0,0.00013698,2]
[345407307,1734249044783,-500.0,0.00013698,2]
[345407308,1734249044793,-500.0,0.00013698,2]
[345407309,1734249044802,-500.0,0.00013698,2]
[345407310,1734249044812,-500.0,0.00013698,2]
[345407311,1734249044821,-500.0,0.00013698,2]
[345407312,1734249044831,-500.0,0.00013698,2]
[345407313,1734249044840,-500.0,0.00013698,2]
[345407314,1734249044849,-500.0,0.00013698,2]
[345407315,1734249044859,-500.0,0.00013698,2]